bitfinex-derivatives/quotes_BTCF0:USTF0_20250716
["timestamp","ask_amount","ask_price","bid_price","bid_amount"]
[1752701679436,1.00170561,119890.0,119880.0,0.07509248]
[1752701679638,1.00170561,119890.0,119880.0,0.24185228]
[1752701680638,1.00170561,119890.0,119880.0,0.07509248]
[1752701680838,1.00170561,119890.0,119880.0,0.0002]
[1752701681039,1.00170561,119890.0,119880.0,0.07509656]
[1752701681833,1.00170561,119890.0,119880.0,0.24185636]
[1752701682038,1.00170561,119890.0,119880.0,0.07509656]
[1752701685541,1.00170561,119890.0,119880.0,0.0002]
[1752701686135,1.00170561,119890.0,119880.0,0.07509656]
[1752701686534,1.00170561,119890.0,119880.0,0.0002]
[1752701686742,1.35234481,119890.0,119880.0,0.0002]
[1752701686935,1.76916881,119890.0,119880.0,0.03936082]
[1752701687134,1.2848482,119890.0,119880.0,2e-08]
[1752701687343,1.7554698,119890.0,119860.0,0.04817]
[1752701687536,1.7554698,119890.0,119860.0,0.05315]
[1752701687537,0.5174129,119870.0,119860.0,0.05315]
[1752701687742,0.7807416,119870.0,119860.0,0.05315]
[1752701687944,1.1313808,119870.0,119860.0,0.05315]
[1752701688844,0.7807416,119870.0,119860.0,0.06015]
[1752701689146,1.1313808,119870.0,119860.0,0.06015]
[1752701689546,1.1314308,119870.0,119860.0,0.06015]
[1752701690343,1.13991765,119870.0,119860.0,0.06015]
[1752701691142,1.13991765,119870.0,119860.0,0.05517]
[1752701693239,1.1313908,119870.0,119860.0,0.06015]
[1752701693744,1.1313908,119870.0,119860.0,0.05515]
[1752701694544,1.1313908,119870.0,119860.0,0.05017]
[1752701694745,1.13984444,119870.0,119860.0,0.05017]
[1752701695640,0.5357508,119870.0,119860.0,0.2501876]
[1752701695844,1.1313108,119870.0,119860.0,0.10538228]
[1752701696041,1.1313108,119870.0,119860.0,0.07215228]
[1752701696247,1.1313108,119870.0,119860.0,0.01900228]
[1752701696953,1.1313108,119870.0,119860.0,0.002]
[1752701697149,1.5481668,119870.0,119860.0,0.002]
[1752701697349,1.5481668,119870.0,119860.0,1e-07]
[1752701698149,0.1668015,119850.0,119840.0,0.07482272]
[1752701698348,1.48233851,119850.0,119840.0,0.07482272]
[1752701698555,1.64921851,119850.0,119840.0,0.07482272]
[1752701699055,0.01869861,119850.0,119830.0,0.0749359]
[1752701699353,1.13166951,119850.0,119840.0,0.2000454]
[1752701699560,1.13166951,119850.0,119840.0,0.2482154]
[1752701699861,1.13166951,119850.0,119840.0,0.2531954]
[1752701701553,0.78103031,119850.0,119840.0,0.2531954]
[1752701701750,1.13166951,119850.0,119840.0,0.2531954]
[1752701701961,1.13166951,119850.0,119840.0,0.32801812]
[1752701702163,1.13171951,119850.0,119840.0,0.32801812]
[1752701702551,1.13171951,119850.0,119840.0,0.2531954]
[1752701706158,0.01874861,119850.0,119840.0,0.27016433]
[1752701706359,0.78095011,119850.0,119840.0,0.27036433]
[1752701706763,0.78095011,119850.0,119840.0,0.37522848]
[1752701707970,0.78095011,119850.0,119840.0,0.27036433]
[1752701708858,0.78095011,119850.0,119840.0,0.37512412]
[1752701709760,5e-05,119850.0,119840.0,0.72576332]
[1752701709960,5e-05,119850.0,119840.0,0.89264332]
[1752701710265,5e-05,119850.0,119840.0,1.03788353]
[1752701710966,5e-05,119850.0,119840.0,0.68724433]
[1752701711163,5e-05,119850.0,119840.0,1.03788353]
[1752701712164,5e-05,119850.0,119840.0,0.78788353]
[1752701712866,1e-07,119850.0,119840.0,0.78788353]
[1752701719171,0.1668016,119850.0,119840.0,0.78788353]
[1752701719366,1.1171208,119850.0,119840.0,0.03530893]
[1752701719562,1.13546859,119850.0,119840.0,0.01716893]
[1752701719969,1.13546859,119850.0,119840.0,0.17256339]
[1752701720874,1.13546859,119850.0,119840.0,0.06776893]
[1752701721475,1.13546859,119850.0,119840.0,0.14264143]
[1752701723177,1.13646859,119850.0,119840.0,0.14264143]
[1752701723478,1.13646859,119850.0,119840.0,0.1256725]
[1752701725177,1.13646859,119850.0,119840.0,0.0508]
[1752701727175,1.13646859,119850.0,119840.0,0.2518954]
[1752701728180,1.13646859,119850.0,119840.0,0.08508]
[1752701728583,1.13550859,119850.0,119840.0,0.2518954]
[1752701728781,1.13550859,119850.0,119840.0,0.08508]
[1752701730679,1.13574859,119850.0,119840.0,0.08508]
[1752701732083,1.13702859,119850.0,119840.0,0.08508]
[1752701733085,0.78638939,119850.0,119840.0,0.08508]
[1752701733286,1.13702859,119850.0,119840.0,0.08508]
[1752701733586,1.13710859,119850.0,119840.0,0.08508]
[1752701734687,0.53678859,119850.0,119840.0,0.08508]
[1752701734884,1.13738859,119850.0,119840.0,0.08508]
[1752701735788,1.13738859,119850.0,119840.0,0.2518954]
[1752701736089,1.13738859,119850.0,119840.0,0.08508]
[1752701736878,1.13738859,119850.0,119840.0,0.2518954]
[1752701737476,1.13738859,119850.0,119840.0,0.08508]
[1752701737679,1.13738859,119850.0,119840.0,0.2518954]
[1752701738284,1.13738859,119850.0,119840.0,0.08508]
[1752701739083,0.78674939,119850.0,119840.0,0.2518954]
[1752701739281,1.13738859,119850.0,119840.0,0.2518954]
[1752701740091,0.79622939,119850.0,119840.0,0.2518954]
[1752701740389,1.14686859,119850.0,119840.0,0.08508]
[1752701740589,0.79622939,119850.0,119840.0,0.08508]
[1752701740793,1.14686859,119850.0,119840.0,0.08508]
[1752701740988,0.79622939,119850.0,119840.0,0.08508]
[1752701741184,1.14686859,119850.0,119840.0,0.08508]
[1752701741493,0.79622939,119850.0,119840.0,0.2518954]
[1752701741694,1.14686859,119850.0,119840.0,0.2518954]
[1752701742281,0.79622939,119850.0,119840.0,0.2518954]
[1752701742982,1.14686859,119850.0,119840.0,0.2518954]
[1752701743384,0.18614939,119850.0,119840.0,0.2518954]
[1752701743592,0.80090939,119850.0,119840.0,0.6025346]
[1752701743789,0.80090939,119850.0,119840.0,0.2518954]
[1752701743990,0.80090939,119850.0,119840.0,0.35668986]
[1752701744793,0.80090939,119850.0,119840.0,0.2518954]
[1752701745296,0.80162939,119850.0,119840.0,0.35668986]
[1752701745590,1.15226859,119850.0,119840.0,0.17407446]
[1752701745792,1.15226859,119850.0,119840.0,0.04466676]
[1752701745793,1.50290779,119850.0,119840.0,0.04466676]
[1752701745988,1.50290779,119850.0,119840.0,0.07488028]
[1752701747289,0.80162939,119850.0,119840.0,0.07488028]
[1752701747488,0.1668293,119830.0,119820.0,0.05285]
[1752701747690,0.80147286,119830.0,119820.0,0.2364383]
[1752701747890,1.15211206,119830.0,119820.0,0.2364383]
[1752701748192,1.15211206,119830.0,119820.0,0.069595]
[1752701748993,1.15211206,119830.0,119820.0,0.075595]
[1752701750294,1.16047606,119830.0,119820.0,0.075595]
[1752701750902,1.16047606,119830.0,119820.0,0.081017]
[1752701751195,1.16047606,119830.0,119820.0,0.006]
[1752701751396,2.31435606,119830.0,119820.0,0.006]
[1752701751602,2.31435606,119830.0,119820.0,0.08100704]
[1752701752193,2.31435606,119830.0,119820.0,0.05481184]
[1752701752421,0.1668711,119800.0,119790.0,0.20224531]
[1752701752625,1.501563,119800.0,119790.0,0.14939531]
[1752701753123,0.166899,119780.0,119770.0,1.73686788]
[1752701753324,1.1329382,119780.0,119770.0,1.73686788]
[1752701754518,1.19882644,119780.0,119770.0,1.73686788]
[1752701754929,1.19882644,119780.0,119770.0,1.84169928]
[1752701755222,0.84918724,119780.0,119770.0,1.85269928]
[1752701755423,1.19982644,119780.0,119770.0,1.74786788]
[1752701755821,0.84918724,119780.0,119770.0,1.74786788]
[1752701756029,1.19982644,119780.0,119770.0,1.74786788]
[1752701756323,1.19982644,119780.0,119770.0,0.02810498]
[1752701756524,1.19982644,119780.0,119770.0,0.011]
[1752701756525,2.35394644,119780.0,119770.0,0.011]
[1752701757029,2.35450644,119780.0,119770.0,0.011]
[1752701757821,0.1669129,119770.0,119760.0,0.3402405]
[1752701758126,0.5175521,119770.0,119760.0,0.3449705]
[1752701758328,1.1335521,119770.0,119760.0,0.3784405]
[1752701760127,0.5175521,119770.0,119760.0,0.3784405]
[1752701760321,1.1333921,119770.0,119760.0,0.3784405]
[1752701760832,1.1333921,119770.0,119760.0,0.561671]
[1752701761126,1.1343921,119770.0,119760.0,0.572671]
[1752701762437,0.7837529,119770.0,119760.0,0.572671]
[1752701762731,1.1343921,119770.0,119760.0,0.572871]
[1752701763924,0.001,119770.0,119760.0,0.9235102]
[1752701764130,0.61792,119770.0,119760.0,0.9235102]
[1752701764330,1.1354721,119770.0,119760.0,0.5311395]
[1752701764720,1.1354721,119770.0,119760.0,0.284282]
[1752701764923,1.1354721,119770.0,119760.0,0.236162]
[1752701765328,1.1363921,119770.0,119760.0,0.236162]
[1752701766426,1.1363921,119770.0,119760.0,0.4030889]
[1752701767139,1.14470901,119770.0,119760.0,0.282422]
[1752701767628,1.1363921,119770.0,119760.0,0.4493489]
[1752701768238,1.1363921,119770.0,119760.0,0.282422]
[1752701768537,0.7857529,119770.0,119760.0,0.282422]
[1752701768835,1.1363921,119770.0,119760.0,0.4543389]
[1752701771334,1.14472248,119770.0,119760.0,0.4543389]
[1752701774036,1.14472248,119770.0,119760.0,0.287412]
[1752701774843,1.14472248,119770.0,119760.0,0.236162]
[1752701775139,1.49536168,119770.0,119760.0,0.236162]
[1752701776233,1.49436168,119770.0,119760.0,0.230162]
[1752701776438,1.66135368,119770.0,119760.0,0.230162]
[1752701776935,0.041736,119750.0,119720.0,0.01718979]
[1752701777140,0.5176079,119730.0,119720.0,0.23542149]
[1752701777340,0.5176079,119730.0,119720.0,0.25318149]
[1752701777542,0.5176079,119730.0,119720.0,1.76974149]
[1752701777937,0.5176079,119730.0,119720.0,0.08557]
[1752701778243,0.5176079,119730.0,119720.0,0.2182326]
[1752701778244,0.53598452,119730.0,119720.0,0.2182326]
[1752701778740,0.53603452,119730.0,119720.0,0.2182326]
[1752701779145,0.53603452,119730.0,119720.0,0.05125]
[1752701779442,0.53703452,119730.0,119720.0,0.2292327]
[1752701780142,0.53708452,119730.0,119720.0,0.4541947]
[1752701782439,0.53708452,119730.0,119720.0,0.4492047]
[1752701782842,0.53708452,119730.0,119720.0,0.4541947]
[1752701785452,0.54563569,119730.0,119720.0,0.4541947]
[1752701786156,0.54563569,119730.0,119720.0,0.4695047]
[1752701786448,0.54563569,119730.0,119720.0,0.287212]
[1752701786650,0.54563569,119730.0,119720.0,0.235962]
[1752701787149,0.54563569,119730.0,119720.0,0.282222]
[1752701787349,0.54563569,119730.0,119720.0,0.287212]
[1752701789743,0.54563569,119730.0,119720.0,0.235962]
[1752701790643,0.54563569,119730.0,119720.0,0.282222]
[1752701790644,1.16151569,119730.0,119720.0,0.282222]
[1752701791950,0.54563569,119730.0,119720.0,0.321532]
[1752701792251,1.16019569,119730.0,119720.0,0.313532]
[1752701793149,1.16019569,119730.0,119720.0,0.279212]
[1752701793355,0.54463569,119730.0,119720.0,0.313922]
[1752701793545,1.16019569,119730.0,119720.0,0.313922]
[1752701795148,1.16019569,119730.0,119720.0,0.274222]
[1752701795343,0.80955649,119730.0,119720.0,0.278742]
[1752701795545,1.16019569,119730.0,119720.0,0.278742]
[1752701795942,0.54463569,119730.0,119720.0,0.4804346]
[1752701796137,1.16119569,119730.0,119720.0,0.4804346]
[1752701797650,0.54463569,119730.0,119720.0,0.4804346]
[1752701797952,1.16099569,119730.0,119720.0,0.4804346]
[1752701798353,1.16099569,119730.0,119720.0,0.313452]
[1752701798553,1.16099569,119730.0,119720.0,0.4804346]
[1752701799052,1.16099569,119730.0,119720.0,0.313452]
[1752701800052,0.53608452,119730.0,119720.0,0.4804346]
[1752701800253,0.53608452,119730.0,119720.0,0.313452]
[1752701800254,1.15188452,119730.0,119720.0,0.313452]
[1752701800954,0.80124532,119730.0,119720.0,0.4804346]
[1752701801158,1.15188452,119730.0,119720.0,0.4804346]
[1752701801650,0.53608452,119730.0,119720.0,0.4804346]
[1752701801854,1.15192452,119730.0,119720.0,0.313452]
[1752701802658,1.15192452,119730.0,119720.0,0.4804346]
[1752701802842,1.15192452,119730.0,119720.0,0.278742]
[1752701803945,1.15152452,119730.0,119720.0,0.4804346]
[1752701804146,1.15152452,119730.0,119720.0,0.313452]
[1752701804854,1.15152452,119730.0,119720.0,0.4804346]
[1752701805253,1.15152452,119730.0,119720.0,0.313452]
[1752701805455,0.53608452,119730.0,119720.0,0.4804346]
[1752701805654,1.15208452,119730.0,119720.0,0.4804346]
[1752701805856,1.15208452,119730.0,119720.0,0.54043087]
[1752701806856,1.15208452,119730.0,119720.0,0.4804346]
[1752701807350,1.50272372,119730.0,119720.0,0.278742]
[1752701807556,1.50272372,119730.0,119720.0,0.30260205]
[1752701807854,1.15208452,119730.0,119720.0,0.30260205]
[1752701808358,1.50272372,119730.0,119720.0,0.227962]
[1752701808661,1.15208452,119730.0,119720.0,0.227962]
[1752701808852,1.15208452,119730.0,119720.0,0.28506023]
[1752701809056,1.15608452,119730.0,119720.0,0.28506023]
[1752701810254,1.15748452,119730.0,119720.0,0.224962]
[1752701811559,1.15744452,119730.0,119720.0,0.278122]
[1752701812060,1.15744452,119730.0,119720.0,0.33822023]
[1752701813257,1.15752452,119730.0,119720.0,0.278122]
[1752701814952,1.15752452,119730.0,119720.0,0.33822023]
[1752701815752,1.52752452,119730.0,119720.0,0.33822023]
[1752701817662,1.52656452,119730.0,119720.0,0.278122]
[1752701818362,1.52656452,119730.0,119720.0,0.294102]
[1752701819253,0.91008452,119730.0,119720.0,0.312832]
[1752701819454,1.52644452,119730.0,119720.0,0.312832]
[1752701820564,1.52640452,119730.0,119720.0,0.312832]
[1752701821559,0.91008452,119730.0,119720.0,0.4798146]
[1752701821758,0.02247662,119730.0,119720.0,0.90509385]
[1752701821966,0.02247662,119730.0,119720.0,0.8304538]
[1752701822270,0.63887662,119730.0,119720.0,0.584646]
[1752701822567,0.80584532,119730.0,119720.0,0.9352852]
[1752701822960,0.18944532,119730.0,119720.0,0.90553234]
[1752701823161,0.80588532,119730.0,119720.0,0.90553234]
[1752701823558,0.18944532,119730.0,119720.0,0.90553234]
[1752701823758,0.80576532,119730.0,119720.0,0.55489314]
[1752701824663,0.80576532,119730.0,119720.0,0.90553234]
[1752701824966,0.80572532,119730.0,119720.0,1.1023332]
[1752701826166,0.18944532,119730.0,119720.0,1.1023332]
[1752701826367,0.80540532,119730.0,119720.0,1.1023332]
[1752701826562,0.80540532,119730.0,119720.0,0.9975018]
[1752701827157,0.80540532,119730.0,119720.0,0.6468626]
[1752701827669,0.80540532,119730.0,119720.0,0.9975018]
[1752701827860,0.63799662,119730.0,119720.0,1.1023332]
[1752701828567,0.63763662,119730.0,119720.0,0.9975018]
[1752701828762,0.63763662,119730.0,119720.0,1.10244476]
[1752701829069,0.55008452,119730.0,119720.0,0.296402]
[1752701829272,0.55008452,119730.0,119720.0,0.55424835]
[1752701829273,0.88008452,119730.0,119720.0,0.55424835]
[1752701829463,1.15676452,119730.0,119720.0,0.55424835]
[1752701829769,1.47676452,119730.0,119720.0,0.55424835]
[1752701831064,1.47676452,119730.0,119720.0,0.4792747]
[1752701831672,1.47676452,119730.0,119720.0,0.312292]
[1752701831867,1.47676452,119730.0,119720.0,0.4792747]
[1752701832366,0.86008452,119730.0,119720.0,0.312292]
[1752701832566,1.49724452,119730.0,119720.0,0.312292]
[1752701833164,1.14660532,119730.0,119720.0,0.312292]
[1752701833363,1.49724452,119730.0,119720.0,0.296402]
[1752701833565,1.49724452,119730.0,119720.0,0.273602]
[1752701834560,1.14660532,119730.0,119720.0,0.273602]
[1752701834766,1.49724452,119730.0,119720.0,0.273602]
[1752701835070,1.49724452,119730.0,119720.0,0.278352]
[1752701835267,2.65224452,119730.0,119720.0,0.278352]
[1752701835467,2.65224452,119730.0,119720.0,0.3383331]
[1752701835859,2.65224452,119730.0,119720.0,0.2849431]
[1752701836061,2.46865332,119730.0,119720.0,0.2849431]
[1752701836261,0.1669827,119720.0,119710.0,0.0599811]
[1752701836468,0.2454885,119680.0,119670.0,0.14375296]
[1752701836663,1.2234077,119680.0,119670.0,0.03881]
[1752701836868,1.6034077,119680.0,119670.0,0.03881]
[1752701837371,1.67189844,119680.0,119670.0,0.03881]
[1752701837668,1.32225924,119680.0,119670.0,0.04481]
[1752701838067,1.67289844,119680.0,119670.0,0.04481]
[1752701838268,1.32225924,119680.0,119670.0,0.31681325]
[1752701838472,0.91872924,119680.0,119670.0,0.36499325]
[1752701838774,0.72779074,119680.0,119670.0,0.36499325]
[1752701839172,0.69677074,119680.0,119670.0,0.36499325]
[1752701839376,0.62828,119680.0,119670.0,0.8356437]
[1752701839879,0.667,119680.0,119670.0,0.95731125]
[1752701840079,0.667,119680.0,119670.0,1.02379205]
[1752701840278,0.667,119680.0,119670.0,0.6688413]
[1752701840470,0.667,119680.0,119670.0,1.0144805]
[1752701840471,0.666,119680.0,119670.0,1.0144805]
[1752701841070,0.18590226,119700.0,119690.0,0.1670245]
[1752701841071,0.0846689,119700.0,119690.0,0.1670245]
[1752701841274,0.2465979,119720.0,119710.0,0.03406]
[1752701841474,0.2465979,119720.0,119710.0,0.2539868]
[1752701841475,1.6364639,119720.0,119710.0,0.2539868]
[1752701841669,1.2858247,119720.0,119710.0,0.2539868]
[1752701841880,1.6364639,119720.0,119710.0,0.2539868]
[1752701842081,1.2440779,119720.0,119710.0,0.2539868]
[1752701842385,1.2023312,119720.0,119710.0,0.2539868]
[1752701842574,1.0223312,119720.0,119710.0,0.2539868]
[1752701842974,1.0303312,119720.0,119710.0,0.2549868]
[1752701843382,1.3809704,119720.0,119710.0,0.2549868]
[1752701844178,1.0303312,119720.0,119710.0,0.2549868]
[1752701844386,1.0303229,119720.0,119710.0,0.2549868]
[1752701844576,1.0303229,119720.0,119710.0,0.2502368]
[1752701844773,1.0777529,119720.0,119710.0,0.2502368]
[1752701844978,1.49624389,119720.0,119710.0,0.2502368]
[1752701845283,1.28183099,119720.0,119710.0,0.4799488]
[1752701845576,0.93119179,119720.0,119710.0,0.4799488]
[1752701845780,1.13183099,119720.0,119710.0,0.4799488]
[1752701845983,0.94817469,119720.0,119710.0,0.4799488]
[1752701846186,1.13183099,119720.0,119710.0,0.4799488]
[1752701846382,0.78119179,119720.0,119710.0,0.4799488]
[1752701846580,0.75017179,119720.0,119710.0,0.4799488]
[1752701846780,0.08269179,119720.0,119710.0,0.55479328]
[1752701847083,0.74865179,119720.0,119710.0,1.07249648]
[1752701847474,0.6808,119720.0,119710.0,0.997652]
[1752701847678,0.56800566,119720.0,119710.0,0.997652]
[1752701848180,0.56800566,119720.0,119710.0,1.10241691]
[1752701848989,0.56800566,119720.0,119710.0,1.16391967]
[1752701849185,0.69015662,119730.0,119720.0,0.2492229]
[1752701849383,0.68995662,119730.0,119720.0,0.2539729]
[1752701849578,0.68995662,119730.0,119720.0,0.66611486]
[1752701849882,0.68995662,119730.0,119720.0,0.83316286]
[1752701850281,0.68995662,119730.0,119720.0,0.6459829]
[1752701850482,0.876409,119730.0,119720.0,0.4789349]
[1752701851378,1.35469613,119730.0,119720.0,0.4559649]
[1752701851591,0.94255417,119730.0,119720.0,0.224962]
[1752701852185,1.35469613,119730.0,119720.0,0.224962]
[1752701855285,1.35469613,119730.0,119720.0,0.20607864]
[1752701855589,1.27255417,119730.0,119720.0,0.20607864]
[1752701855809,1.68469613,119730.0,119720.0,0.19607864]
[1752701855986,1.68869613,119730.0,119720.0,0.19607864]
[1752701856382,1.27655417,119730.0,119720.0,0.14289864]
[1752701856889,1.68869613,119730.0,119720.0,0.14289864]
[1752701857094,1.27655417,119730.0,119720.0,0.14289864]
[1752701857486,2.10574413,119730.0,119720.0,0.10714354]
[1752701857682,2.10574413,119730.0,119720.0,0.06787374]
[1752701859298,2.23079682,119730.0,119720.0,4e-08]
[1752701860496,1.81865486,119730.0,119720.0,4e-08]
[1752701860792,0.1669829,119720.0,119710.0,4e-08]
[1752701860998,0.91912486,119720.0,119710.0,4e-08]
[1752701861206,1.33618886,119720.0,119710.0,4e-08]
[1752701861392,1.04872301,119720.0,119710.0,4e-08]
[1752701861587,1.46086497,119720.0,119710.0,4e-08]
[1752701863703,1.04872301,119720.0,119710.0,4e-08]
[1752701863902,1.46086497,119720.0,119710.0,4e-08]
[1752701864086,1.46086497,119720.0,119710.0,0.22496204]
[1752701865501,1.46186497,119720.0,119710.0,0.22496204]
[1752701865802,1.52753613,119720.0,119710.0,0.22496204]
[1752701866502,1.52853613,119720.0,119710.0,0.22496204]
[1752701867998,1.54925445,119720.0,119710.0,0.17912474]
[1752701868195,1.54925274,119720.0,119710.0,0.15774924]
[1752701868409,0.1670387,119680.0,119670.0,0.05279]
[1752701868705,1.64103559,119680.0,119670.0,0.08674]
[1752701869105,1.22889363,119680.0,119670.0,0.08674]
[1752701869304,0.89889363,119680.0,119670.0,0.08674]
[1752701869602,1.31103559,119680.0,119670.0,0.09074]
[1752701870596,1.31103559,119680.0,119670.0,0.315702]
[1752701870806,1.31941755,119680.0,119670.0,0.315702]
[1752701871102,1.25940183,119680.0,119670.0,0.315702]
[1752701871293,1.25101987,119680.0,119670.0,0.315702]
[1752701871499,1.25101987,119680.0,119670.0,0.4827547]
[1752701871696,1.25101987,119680.0,119670.0,0.315702]
[1752701872103,0.54765987,119680.0,119670.0,0.315702]
[1752701872404,1.24802987,119680.0,119670.0,0.4827547]
[1752701872805,0.54770987,119680.0,119670.0,0.4827547]
[1752701873007,1.24806987,119680.0,119670.0,0.4827547]
[1752701873305,0.89594363,119680.0,119670.0,0.4827547]
[1752701873603,1.24806987,119680.0,119670.0,0.3960147]
[1752701873796,0.2126506,119650.0,119640.0,0.0247]
[1752701874001,1.62377177,119650.0,119640.0,0.05865]
[1752701874201,1.61377177,119650.0,119640.0,0.05865]
[1752701874395,0.91345177,119650.0,119640.0,0.05865]
[1752701874604,1.61377177,119650.0,119640.0,0.05865]
[1752701875202,1.61377177,119650.0,119640.0,0.06065]
[1752701875704,1.26164553,119650.0,119640.0,0.06065]
[1752701875906,1.61377177,119650.0,119640.0,0.08874]
[1752701876897,1.61377177,119650.0,119640.0,0.313702]
[1752701876898,1.26164553,119650.0,119640.0,0.313702]
[1752701877104,0.97418492,119650.0,119640.0,0.313702]
[1752701877297,0.35973886,119650.0,119640.0,0.313702]
[1752701877698,1.18545764,119650.0,119640.0,0.298342]
[1752701877910,1.44545764,119650.0,119640.0,0.251662]
[1752701878102,0.62973886,119650.0,119640.0,0.251662]
[1752701878303,1.89609764,119650.0,119640.0,0.251662]
[1752701878604,1.35037886,119650.0,119640.0,0.251662]
[1752701878802,0.71259825,119650.0,119640.0,0.251662]
[1752701879008,1.48975825,119650.0,119640.0,0.274762]
[1752701879311,1.38689886,119650.0,119640.0,0.274762]
[1752701879506,1.79975825,119650.0,119640.0,0.274762]
[1752701879712,1.79975825,119650.0,119640.0,0.313702]
[1752701880414,2.21261764,119650.0,119640.0,0.293352]
[1752701880612,1.79975825,119650.0,119640.0,0.293352]
[1752701880812,1.79975825,119650.0,119640.0,0.313702]
[1752701880813,1.80879825,119650.0,119640.0,0.313702]
[1752701881013,1.81367825,119650.0,119640.0,0.313702]
[1752701881208,1.40081886,119650.0,119640.0,0.313702]
[1752701881403,0.05855,119620.0,119610.0,0.01859]
[1752701881605,0.1671364,119610.0,119600.0,0.0797752]
[1752701881802,0.2541564,119610.0,119600.0,0.005]
[1752701882005,0.66701579,119610.0,119600.0,0.005]
[1752701882209,0.67555741,119610.0,119600.0,0.0797752]
[1752701882611,0.26269802,119610.0,119600.0,0.0797752]
[1752701882806,0.27369802,119610.0,119600.0,0.014]
[1752701883010,0.27369802,119610.0,119600.0,0.08878094]
[1752701883220,0.27369802,119610.0,119600.0,0.10737094]
[1752701883512,0.27369802,119610.0,119600.0,0.13170094]
[1752701883720,0.67801579,119610.0,119600.0,0.23646585]
[1752701883902,0.67801579,119610.0,119600.0,0.16168491]
[1752701884108,0.2651564,119610.0,119600.0,0.16168491]
[1752701884609,0.2651564,119610.0,119600.0,0.38664691]
[1752701884808,0.67801579,119610.0,119600.0,0.45243829]
[1752701885113,0.67801579,119610.0,119600.0,0.229962]
[1752701885313,0.67801579,119610.0,119600.0,0.28979609]
[1752701885513,0.2651564,119610.0,119600.0,0.28979943]
[1752701885716,0.67801579,119610.0,119600.0,0.28979943]
[1752701885910,0.2651564,119610.0,119600.0,0.28979943]
[1752701886215,0.2651564,119610.0,119600.0,0.22898044]
[1752701886515,0.6051564,119610.0,119600.0,0.22898044]
[1752701886708,1.01801579,119610.0,119600.0,0.1691331]
[1752701887107,0.6051564,119610.0,119600.0,0.1691331]
[1752701887309,1.01801579,119610.0,119600.0,0.1691331]
[1752701887711,0.6051564,119610.0,119600.0,0.1691331]
[1752701887906,0.6081564,119610.0,119600.0,0.1701331]
[1752701888110,1.02101579,119610.0,119600.0,0.1701331]
[1752701888310,0.6081564,119610.0,119600.0,0.1701331]
[1752701888812,1.02101579,119610.0,119600.0,0.1701331]
[1752701889011,0.6081564,119610.0,119600.0,0.1701331]
[1752701889207,1.02101579,119610.0,119600.0,0.1701331]
[1752701889415,1.02101579,119610.0,119600.0,0.1967631]
[1752701889616,1.02101579,119610.0,119600.0,0.1701331]
[1752701889815,1.02101579,119610.0,119600.0,0.1944631]
[1752701889816,0.3081564,119610.0,119600.0,0.1944631]
[1752701890012,1.49597579,119610.0,119600.0,0.2569331]
[1752701890720,1.0831164,119610.0,119600.0,0.31678044]
[1752701890919,1.0831164,119610.0,119600.0,0.2569331]
[1752701891119,1.49597579,119610.0,119600.0,0.2569331]
[1752701891508,1.0831164,119610.0,119600.0,0.2569331]
[1752701891921,1.49597579,119610.0,119600.0,0.31678044]
[1752701892824,1.0831164,119610.0,119600.0,0.31678044]
[1752701893029,1.49597579,119610.0,119600.0,0.31678044]
[1752701893417,1.49597579,119610.0,119600.0,0.2569331]
[1752701893824,1.0831164,119610.0,119600.0,0.2569331]
[1752701894024,1.49597579,119610.0,119600.0,0.2569331]
[1752701895318,0.60399579,119610.0,119600.0,0.2569331]
[1752701895523,0.9733764,119610.0,119600.0,1.08700849]
[1752701895724,0.9733764,119610.0,119600.0,1.25416009]
[1752701896124,0.9733764,119610.0,119600.0,0.5913007]
[1752701896324,0.9733764,119610.0,119600.0,0.8413007]
[1752701896519,0.9733764,119610.0,119600.0,0.6741491]
[1752701896923,1.38623579,119610.0,119600.0,0.6741491]
[1752701897120,0.9733764,119610.0,119600.0,0.6741491]
[1752701897621,0.9733764,119610.0,119600.0,0.4240847]
[1752701898229,0.80624,119610.0,119600.0,0.4240847]
[1752701898434,0.9733777,119610.0,119600.0,0.4240847]
[1752701898834,0.80624,119610.0,119600.0,0.4240847]
[1752701899135,0.9733777,119610.0,119600.0,0.4240847]
[1752701900526,0.80624,119610.0,119600.0,0.4240847]
[1752701900922,0.80629,119610.0,119600.0,0.4240847]
[1752701901821,1e-08,119610.0,119600.0,1.25416009]
[1752701902226,1e-08,119610.0,119600.0,1.00416009]
[1752701902426,1e-08,119610.0,119600.0,1.06400743]
[1752701902828,0.2135372,119630.0,119600.0,1.06400743]
[1752701902829,0.1671197,119630.0,119620.0,0.2493937]
[1752701903027,0.9790397,119630.0,119620.0,0.29887392]
[1752701903232,1.0086197,119630.0,119620.0,0.2539237]
[1752701903633,1.0086197,119630.0,119620.0,0.29890551]
[1752701904126,0.9766797,119630.0,119620.0,0.29890551]
[1752701904323,1.0086197,119630.0,119620.0,0.2539237]
[1752701904523,1.10920529,119630.0,119620.0,0.2539237]
[1752701904721,1.11320529,119630.0,119620.0,0.29892097]
[1752701905333,1.11320529,119630.0,119620.0,0.4230568]
[1752701905836,1.11320529,119630.0,119620.0,0.46807034]
[1752701906039,1.52606468,119630.0,119620.0,0.46807034]
[1752701906236,1.11320529,119630.0,119620.0,0.4230568]
[1752701906430,1.52606468,119630.0,119620.0,0.4230568]
[1752701906638,1.52611468,119630.0,119620.0,0.4230568]
[1752701907136,1.11325529,119630.0,119620.0,0.4230568]
[1752701907436,1.52611468,119630.0,119620.0,0.4230568]
[1752701908132,1.52611468,119630.0,119620.0,0.48290414]
[1752701908936,1.11325529,119630.0,119620.0,0.48290414]
[1752701909145,1.52611468,119630.0,119620.0,0.48290414]
[1752701909438,1.11325529,119630.0,119620.0,0.48290414]
[1752701909738,1.52611468,119630.0,119620.0,0.48290414]
[1752701911441,1.11325529,119630.0,119620.0,0.48290414]
[1752701912338,1.11325529,119630.0,119620.0,0.49784818]
[1752701913336,1.11325529,119630.0,119620.0,0.4230568]
[1752701915142,1.14357629,119630.0,119620.0,0.4230568]
[1752701916945,1.49591631,119630.0,119620.0,0.4230568]
[1752701919341,0.0247,119640.0,119630.0,0.167111]
[1752701919546,0.978477,119640.0,119630.0,0.71153593]
[1752701920048,0.81138,119640.0,119630.0,0.71153593]
[1752701920242,0.78668,119640.0,119630.0,0.71153593]
[1752701920444,0.78668,119640.0,119630.0,0.88066903]
[1752701921043,0.78668,119640.0,119630.0,0.52832901]
[1752701921247,0.78668,119640.0,119630.0,0.49865792]
[1752701921448,0.78668,119640.0,119630.0,0.4235641]
[1752701922651,1.0242476,119640.0,119630.0,0.4235641]
[1752701923148,1.0242476,119640.0,119630.0,0.49863626]
[1752701923352,0.87225,119640.0,119630.0,0.49863626]
[1752701923743,0.87425,119640.0,119630.0,0.49863626]
[1752701923944,0.81569,119640.0,119630.0,0.49863626]